bitfinex/quotes_BTCUSD_20250512
["timestamp","ask_amount","ask_price","bid_price","bid_amount"]
[1747060443644,0.21280692,103380.0,103370.0,0.10548221]
[1747060443866,0.21280692,103380.0,103370.0,0.00962791]
[1747060444115,0.02902101,103370.0,103360.0,0.57215042]
[1747060444343,0.02902101,103370.0,103360.0,0.67772562]
[1747060444566,0.22250074,103370.0,103360.0,0.65837681]
[1747060444776,0.21286823,103350.0,103340.0,0.12027039]
[1747060444997,0.20319284,103350.0,103340.0,0.13825065]
[1747060445217,0.2032125,103340.0,103330.0,0.00962791]
[1747060445442,0.01935106,103350.0,103340.0,0.02902925]
[1747060445694,0.21284753,103360.0,103350.0,0.01935086]
[1747060445917,0.21284753,103360.0,103330.0,0.53355463]
[1747060445918,0.01935236,103340.0,103330.0,0.53355463]
[1747060446136,0.22256552,103340.0,103330.0,0.31844117]
[1747060446352,0.20319293,103350.0,103340.0,0.2128892]
[1747060446572,0.21290962,103330.0,103320.0,0.4]
[1747060446790,0.01935798,103310.0,103300.0,0.35401441]
[1747060447022,0.22263015,103310.0,103300.0,0.17372834]
[1747060447242,0.21295102,103310.0,103300.0,0.39134524]
[1747060447452,0.00967913,103310.0,103300.0,0.76038554]
[1747060447677,0.02818971,103330.0,103320.0,0.22260841]
[1747060447894,0.23142245,103330.0,103320.0,0.0958543]
[1747060448139,0.21293022,103320.0,103310.0,0.34]
[1747060448609,0.20327151,103310.0,103300.0,0.2868805]
[1747060448828,0.20327151,103310.0,103300.0,0.01539562]
[1747060449042,0.20327151,103310.0,103300.0,0.35539562]
[1747060449258,0.1935921,103310.0,103300.0,0.2186869]
[1747060449476,0.20327151,103310.0,103300.0,0.01539562]
[1747060449917,0.20327151,103310.0,103300.0,0.35539562]
[1747060450792,0.10327151,103310.0,103300.0,0.35539562]
[1747060451690,0.0185132,103320.0,103310.0,0.20327161]
[1747060451917,0.00883529,103320.0,103310.0,1.20454178]
[1747060452131,0.02819121,103320.0,103310.0,1.20454178]
[1747060452393,0.19351717,103350.0,103320.0,0.55292928]
[1747060452618,0.00967351,103370.0,103360.0,0.22252254]
[1747060452836,0.2128481,103360.0,103350.0,0.20317735]
[1747060453070,0.01934721,103370.0,103360.0,0.22252189]
[1747060453292,0.0193488,103360.0,103350.0,0.64870704]
[1747060453531,0.02902344,103360.0,103350.0,0.64870704]
[1747060453759,0.00887562,103360.0,103350.0,0.66805753]
[1747060453984,0.00887562,103360.0,103350.0,0.95843057]
[1747060454205,0.01854979,103360.0,103350.0,0.95843057]
[1747060454440,0.23139817,103360.0,103350.0,0.62937147]
[1747060454646,0.23139817,103360.0,103350.0,0.34]
[1747060454647,0.22172363,103360.0,103350.0,0.34]
[1747060454913,0.00887562,103360.0,103350.0,0.66807357]
[1747060455102,0.01854988,103360.0,103350.0,0.66807357]
[1747060455326,0.03789906,103360.0,103350.0,0.66807357]
[1747060455541,0.24107243,103360.0,103350.0,0.4358543]
[1747060455776,0.22172372,103360.0,103350.0,0.34]
[1747060456021,0.22172372,103360.0,103350.0,0.55286841]
[1747060456022,0.02822424,103360.0,103350.0,0.55286841]
[1747060456273,0.22172343,103360.0,103350.0,0.34]
[1747060456492,0.01854988,103360.0,103350.0,0.73627195]
[1747060456710,0.23139769,103360.0,103350.0,0.6487229]
[1747060456933,0.23139769,103360.0,103350.0,0.63904723]
[1747060457155,0.22172343,103360.0,103350.0,0.6487229]
[1747060457387,0.46818376,103390.0,103360.0,0.01]
[1747060457603,0.19347973,103370.0,103360.0,0.01]
[1747060458050,0.19347752,103380.0,103360.0,0.21317318]
[1747060458288,0.22250092,103370.0,103360.0,0.01962791]
[1747060458505,0.21282741,103370.0,103360.0,0.01962791]
[1747060458724,0.20315362,103370.0,103360.0,0.01962791]
[1747060459658,0.20315362,103370.0,103360.0,0.02930283]
[1747060459899,0.20315362,103370.0,103360.0,0.01962791]
[1747060460593,0.19351717,103350.0,103340.0,0.34]
[1747060460840,0.20317327,103360.0,103350.0,0.01967585]
[1747060461056,0.20319302,103350.0,103340.0,0.4458543]
[1747060461293,0.21286859,103350.0,103340.0,0.6687435]
[1747060461557,0.21286859,103350.0,103340.0,0.35]
[1747060461799,0.21288901,103340.0,103330.0,0.33190593]
[1747060462016,0.21288901,103340.0,103330.0,0.43743777]
[1747060462161,0.22256571,103340.0,103330.0,0.77743796]
[1747060462384,0.21288939,103340.0,103330.0,0.56452834]
[1747060462603,0.20321269,103340.0,103330.0,0.1366543]
[1747060462808,0.20321269,103340.0,103330.0,0.1158543]
[1747060463615,0.20321269,103340.0,103330.0,0.1058543]
[1747060463844,0.19357135,103330.0,103320.0,0.34]
[1747060464082,0.21293003,103320.0,103310.0,0.32436614]
[1747060464305,0.21293003,103320.0,103310.0,0.21662834]
[1747060464524,0.20327151,103310.0,103300.0,0.01107]
[1747060464749,0.20327151,103310.0,103300.0,0.00107]
[1747060464968,0.20327151,103310.0,103300.0,0.01107]
[1747060465440,0.51935667,103320.0,103300.0,0.21468084]
[1747060465670,0.21537051,103310.0,103300.0,0.01107]
[1747060465896,0.21537051,103310.0,103300.0,0.35107]
[1747060465897,0.20327151,103310.0,103300.0,0.35107]
[1747060466133,0.29912581,103310.0,103300.0,0.00107]
[1747060466353,1.21770472,103310.0,103300.0,0.00107]
[1747060466587,1.14765042,103310.0,103300.0,0.00107]
[1747060466814,1.44765042,103310.0,103300.0,0.00107]
[1747060467042,0.80765042,103310.0,103300.0,0.00107]
[1747060467514,0.31366666,103310.0,103300.0,0.00107]
[1747060467749,0.29912581,103310.0,103300.0,0.00107]
[1747060468025,0.69357336,103320.0,103300.0,0.21404126]
[1747060468266,0.20327161,103310.0,103300.0,0.00107]
[1747060468499,0.78185052,103310.0,103300.0,0.00107]
[1747060468974,1.14765052,103310.0,103300.0,0.00107]
[1747060469209,1.47145052,103310.0,103300.0,0.00107]
[1747060469676,0.21305376,103260.0,103250.0,0.07787404]
[1747060469919,0.21305376,103260.0,103250.0,0.08787404]
[1747060470142,0.20336928,103260.0,103250.0,0.08787404]
[1747060470370,0.21305376,103260.0,103250.0,0.07787404]
[1747060470596,0.30890806,103260.0,103250.0,0.07787404]
[1747060471060,0.21305376,103260.0,103250.0,0.07787404]
[1747060471503,0.30890806,103260.0,103250.0,0.07787404]
[1747060471721,0.21305376,103260.0,103250.0,0.07787404]
[1747060472480,0.20340934,103240.0,103230.0,0.41787404]
[1747060472725,0.20340934,103240.0,103230.0,0.07787404]
[1747060472969,0.20340934,103240.0,103230.0,0.08787404]
[1747060473203,0.20340934,103240.0,103230.0,0.07787404]
[1747060473921,0.21309513,103240.0,103230.0,0.07787404]
[1747060474134,0.21309513,103240.0,103220.0,0.0432]
[1747060474135,0.20342903,103230.0,103220.0,0.35]
[1747060474577,0.21311585,103230.0,103220.0,0.35]
[1747060475016,0.20342903,103230.0,103220.0,0.381]
[1747060475904,0.20342903,103230.0,103220.0,0.35]
[1747060476127,0.20342903,103230.0,103200.0,0.02351771]
[1747060476128,0.21315697,103210.0,103200.0,0.02351771]
[1747060476328,0.21315697,103210.0,103200.0,0.01351771]
[1747060476869,0.21315697,103210.0,103200.0,0.02351771]
[1747060477100,0.20348817,103200.0,103190.0,0.099405]
[1747060477331,0.20348817,103200.0,103190.0,0.077205]
[1747060478019,0.21315641,103210.0,103200.0,0.35]
[1747060478232,0.21315715,103210.0,103200.0,0.3812]
[1747060478444,0.21315715,103210.0,103200.0,0.35]
[1747060479125,0.21315715,103210.0,103200.0,0.34]
[1747060479408,0.21315715,103210.0,103200.0,0.35]
[1747060479629,0.22284501,103210.0,103200.0,0.5195543]
[1747060479854,0.1937775,103220.0,103210.0,0.0433]
[1747060479855,0.22284068,103220.0,103210.0,0.0433]
[1747060480085,0.22284068,103220.0,103210.0,0.0759]
[1747060480303,0.21315311,103220.0,103210.0,0.0759]
[1747060480550,0.1937775,103220.0,103210.0,0.0859]
[1747060480803,0.22278016,103240.0,103230.0,0.041]
[1747060481027,0.21309513,103240.0,103230.0,0.041]
[1747060481472,0.22278129,103240.0,103230.0,0.041]
[1747060481712,0.22278129,103240.0,103220.0,0.35962791]
[1747060481713,0.20342903,103230.0,103220.0,0.35962791]
[1747060482181,0.20342903,103230.0,103220.0,0.38992791]
[1747060482405,0.21311492,103230.0,103220.0,0.52658221]
[1747060482635,0.19374212,103230.0,103220.0,0.73003105]
[1747060482855,0.21309522,103240.0,103230.0,0.4211]
[1747060483310,0.22278016,103240.0,103230.0,0.5169543]
[1747060483533,0.19377428,103260.0,103250.0,0.01]
[1747060483534,0.22282574,103260.0,103250.0,0.01]
[1747060483773,0.22282574,103260.0,103240.0,0.34]
[1747060483774,0.20338964,103250.0,103240.0,0.34]
[1747060483999,0.19374212,103230.0,103220.0,0.05192791]
[1747060484262,0.21311529,103230.0,103220.0,0.48778221]
[1747060484533,0.23248921,103230.0,103220.0,0.51968221]
[1747060484734,0.22280211,103230.0,103220.0,0.52968221]
[1747060484950,0.21311595,103230.0,103220.0,0.00962791]
[1747060485178,0.20346799,103210.0,103200.0,0.08392791]
[1747060485400,0.20342856,103230.0,103220.0,0.01]
[1747060485626,0.21311604,103230.0,103220.0,0.043]
[1747060485861,0.21311604,103230.0,103220.0,0.01]
[1747060486101,0.21311604,103230.0,103220.0,0.043]
[1747060486370,0.21311604,103230.0,103220.0,0.0748]
[1747060486603,0.19374018,103240.0,103230.0,0.01]
[1747060486837,0.20342559,103240.0,103230.0,0.4126]
[1747060487083,0.21311222,103240.0,103230.0,0.4126]
[1747060489112,0.20342634,103240.0,103230.0,0.4126]
[1747060489347,0.21307411,103250.0,103240.0,0.01]
[1747060489581,0.1937046,103250.0,103240.0,0.0403]
[1747060489790,0.1937046,103250.0,103240.0,0.0704]
[1747060489791,0.21307364,103250.0,103240.0,0.0704]
[1747060490007,0.2130744,103250.0,103240.0,0.0403]
[1747060490460,0.2130744,103250.0,103240.0,0.01]
[1747060490944,0.2130744,103250.0,103240.0,0.0402]
[1747060491163,0.2130744,103250.0,103240.0,0.0722]
[1747060491164,0.21307383,103250.0,103240.0,0.0722]
[1747060491382,0.2130744,103250.0,103240.0,0.0722]
[1747060491601,0.2130744,103250.0,103240.0,0.0402]
[1747060492026,0.2130744,103250.0,103240.0,0.01]
[1747060492784,0.20340934,103240.0,103230.0,0.47387619]
[1747060493006,0.20340934,103240.0,103230.0,0.54847619]
[1747060493248,0.21309522,103240.0,103230.0,0.54847619]
[1747060493836,0.21309522,103240.0,103230.0,0.53847619]
[1747060494049,0.21309522,103240.0,103230.0,0.54847619]
[1747060494257,0.19372336,103240.0,103230.0,0.74221831]
[1747060494556,0.22278073,103240.0,103230.0,0.64433049]
[1747060494822,0.21309522,103240.0,103230.0,0.64433049]
[1747060495068,0.22878138,103240.0,103230.0,0.64533049]
[1747060495295,0.21909559,103240.0,103230.0,0.64533049]
[1747060495557,0.19972336,103240.0,103230.0,0.64533049]
[1747060495806,0.006,103240.0,103230.0,2.0339174]
[1747060496030,0.19972336,103240.0,103230.0,1.88404496]
[1747060496289,0.21909466,103240.0,103230.0,1.03056562]
[1747060496525,0.20940887,103240.0,103230.0,1.04025272]
[1747060496771,0.22878026,103240.0,103230.0,1.46762233]
[1747060497009,0.006,103240.0,103230.0,1.52081745]
[1747060497256,0.006,103240.0,103230.0,1.07416674]
[1747060497535,0.006,103240.0,103230.0,1.50153635]
[1747060497779,0.21307558,103250.0,103240.0,0.287981]
[1747060498049,0.21307558,103250.0,103240.0,0.39383539]
[1747060498315,0.20339111,103250.0,103240.0,0.79383539]
[1747060498558,0.19368584,103260.0,103250.0,0.62858983]
[1747060498811,0.2324213,103260.0,103250.0,0.53068221]
[1747060499029,0.21305414,103260.0,103250.0,0.35962791]
[1747060499293,0.20338964,103250.0,103240.0,0.3814]
[1747060499533,0.21307458,103250.0,103240.0,0.3814]
[1747060499807,0.21307364,103250.0,103240.0,0.4229]
[1747060500024,0.22275924,103250.0,103240.0,0.4229]
[1747060500246,0.20338964,103250.0,103240.0,0.4229]
[1747060500467,0.20340934,103240.0,103230.0,0.15527619]
[1747060500683,0.20340934,103240.0,103230.0,0.16527619]
[1747060501134,0.20340934,103240.0,103230.0,0.50527619]
[1747060501350,0.20340934,103240.0,103230.0,0.1]
[1747060501575,0.72663325,103240.0,103230.0,0.1]
[1747060501806,0.29926364,103240.0,103230.0,0.1]
[1747060502244,1.1362141,103240.0,103230.0,0.1]
[1747060502447,1.1402141,103240.0,103230.0,0.101]
[1747060502907,1.1362141,103240.0,103230.0,0.1]
[1747060503131,1.16887275,103240.0,103230.0,0.101]
[1747060503345,1.46887275,103240.0,103230.0,0.101]
[1747060503569,1.83567275,103240.0,103230.0,0.101]
[1747060503798,1.55837275,103240.0,103230.0,0.101]
[1747060504598,0.01937918,103200.0,103190.0,0.067205]
[1747060504805,1.12820153,103200.0,103190.0,0.067205]
[1747060505262,0.73640153,103200.0,103190.0,0.067205]
[1747060505491,0.21317762,103200.0,103190.0,0.067205]
[1747060506173,0.21617762,103200.0,103190.0,0.068205]
[1747060506613,0.22586679,103200.0,103190.0,0.110605]
[1747060506845,0.21617762,103200.0,103190.0,0.141305]
[1747060507069,0.21323886,103170.0,103160.0,0.00962791]
[1747060507286,0.21325271,103180.0,103170.0,0.07787404]
[1747060507562,0.23263574,103180.0,103170.0,0.17372834]
[1747060508008,0.23263565,103180.0,103170.0,0.17372834]
[1747060508221,0.20355847,103190.0,103180.0,0.20352781]
[1747060508444,0.20352696,103180.0,103170.0,0.30080611]
[1747060508674,0.19383601,103180.0,103170.0,0.40635258]
[1747060508892,0.193793,103220.0,103180.0,0.19383601]
[1747060509112,0.19376089,103220.0,103210.0,0.21315725]
[1747060509337,0.20344809,103220.0,103210.0,0.29932285]
[1747060509553,0.21313547,103220.0,103210.0,0.0958543]
[1747060509778,0.21313547,103220.0,103210.0,0.28963397]
[1747060509992,0.20342847,103230.0,103220.0,0.21313669]
[1747060510211,0.23257083,103240.0,103220.0,0.38347847]
[1747060510435,0.22278025,103240.0,103230.0,0.1606543]
[1747060510669,0.20344598,103250.0,103230.0,0.36144286]
[1747060510670,0.21313027,103250.0,103230.0,0.36144286]
[1747060510888,0.00968447,103250.0,103240.0,0.27789503]
[1747060511111,0.00968447,103250.0,103240.0,0.37374933]
[1747060511326,0.21308499,103270.0,103250.0,0.23508983]
[1747060511540,0.213053,103260.0,103250.0,0.72335698]
[1747060511754,0.213053,103260.0,103250.0,0.73304183]
[1747060511992,0.2324212,103260.0,103250.0,0.51996744]
[1747060512222,0.19371923,103270.0,103260.0,0.20336994]
[1747060512446,0.19375996,103290.0,103280.0,0.20333074]
[1747060512698,0.2226935,103280.0,103270.0,0.60815034]
[1747060512942,0.2226935,103280.0,103270.0,0.4048]
[1747060512943,0.21301287,103280.0,103270.0,0.4048]
[1747060513186,0.22273757,103260.0,103250.0,0.04302791]
[1747060513405,0.20337003,103260.0,103250.0,0.47888221]
[1747060513635,0.20337003,103260.0,103250.0,0.01062791]
[1747060513907,0.20337003,103260.0,103250.0,0.001]
[1747060514126,0.21305385,103260.0,103250.0,0.34]
[1747060514349,0.21305385,103260.0,103250.0,0.5337046]
[1747060514582,0.22273814,103260.0,103250.0,0.47808221]
[1747060514808,0.20337013,103260.0,103250.0,0.47808221]
[1747060515039,0.20537013,103260.0,103250.0,0.00962791]
[1747060515292,0.22278034,103240.0,103230.0,0.42990654]
[1747060515521,0.2130954,103240.0,103230.0,0.34962791]
[1747060515783,0.2130954,103240.0,103230.0,0.00962791]
[1747060516003,0.2130954,103240.0,103200.0,0.05016051]
[1747060516004,0.20346846,103210.0,103200.0,0.05016051]
[1747060516232,0.20346846,103210.0,103190.0,0.10817404]
[1747060516233,0.20348817,103200.0,103190.0,0.10817404]
[1747060516521,0.21317781,103200.0,103190.0,0.1261543]
[1747060516745,0.21319866,103190.0,103180.0,0.58375562]
[1747060516977,0.21319866,103190.0,103180.0,0.50638221]
[1747060517191,0.22288876,103190.0,103180.0,0.16638221]
[1747060517413,0.21319847,103190.0,103180.0,0.0958543]
[1747060517633,0.00969114,103180.0,103170.0,0.76067809]
[1747060517838,0.0193805,103190.0,103180.0,0.42368209]
[1747060518093,0.22488914,103190.0,103180.0,0.5098461]
[1747060518333,0.21519866,103190.0,103180.0,0.29938201]
[1747060518563,0.21321932,103180.0,103170.0,0.58942744]
[1747060518790,0.22291036,103180.0,103170.0,1.0672741]
[1747060519028,0.00969095,103180.0,103170.0,0.77006618]
[1747060519270,0.21564219,103180.0,103170.0,0.001]
[1747060519503,0.21321913,103180.0,103170.0,0.001]
[1747060520224,0.01938312,103180.0,103170.0,0.2271548]
[1747060520458,0.00969142,103180.0,103170.0,0.3240091]
[1747060520684,0.0096902,103190.0,103180.0,0.34969095]
[1747060520911,0.21319847,103190.0,103180.0,0.4358543]
[1747060521383,0.21319847,103190.0,103180.0,0.63938192]
[1747060521630,0.2035079,103190.0,103180.0,0.34]
[1747060521863,0.2035079,103190.0,103170.0,0.341]
[1747060521864,0.20352762,103180.0,103170.0,0.341]
[1747060522081,0.20352762,103180.0,103170.0,0.4368543]
[1747060523029,0.20352762,103180.0,103170.0,0.0968543]
[1747060523718,0.20352762,103180.0,103170.0,0.001]
[1747060523945,0.20452762,103180.0,103170.0,0.001]
[1747060524166,0.20352762,103180.0,103170.0,0.001]
[1747060524392,0.20352762,103180.0,103170.0,0.002]
[1747060524393,0.20952762,103180.0,103170.0,0.002]
[1747060525974,0.74783077,103180.0,103170.0,0.002]
[1747060526200,0.31992277,103180.0,103170.0,0.002]
[1747060526660,0.20952762,103180.0,103170.0,0.002]
[1747060527573,0.21921913,103180.0,103170.0,0.002]
[1747060528031,0.32961428,103180.0,103170.0,0.002]
[1747060528377,0.21921913,103180.0,103170.0,0.002]
[1747060528604,0.21921913,103180.0,103170.0,0.21523924]
[1747060528605,0.01569095,103180.0,103170.0,0.21523924]
[1747060528849,0.01569095,103180.0,103170.0,0.2475398]
[1747060528850,0.006,103180.0,103170.0,0.2475398]
[1747060529118,0.22891027,103180.0,103170.0,0.31470174]
[1747060529299,0.22891008,103180.0,103170.0,0.74226833]
[1747060529528,0.22891083,103180.0,103170.0,0.78057569]
[1747060529759,0.21321932,103180.0,103170.0,0.78057588]
[1747060530003,0.21421932,103180.0,103170.0,0.78057588]
[1747060530237,0.21421932,103180.0,103170.0,0.79026852]
[1747060530531,0.20552771,103180.0,103170.0,0.4991543]
[1747060530979,0.21323999,103170.0,103160.0,0.21325863]
[1747060531186,0.22293226,103170.0,103160.0,0.31880623]
[1747060531413,0.002,103180.0,103170.0,0.22293226]
[1747060531635,0.02138237,103180.0,103170.0,0.32847864]
[1747060531858,0.002,103180.0,103170.0,0.75638664]
[1747060532078,0.002,103180.0,103170.0,0.32847864]
[1747060532293,0.02138256,103180.0,103170.0,0.34775974]
[1747060532953,0.01169114,103180.0,103170.0,0.69738765]
[1747060533194,0.002,103180.0,103170.0,4.20316969]
[1747060533419,0.001,103180.0,103170.0,4.20316969]
[1747060533643,0.001,103180.0,103170.0,4.21771054]
[1747060533863,0.001,103180.0,103170.0,5.00695054]
[1747060534085,0.001,103180.0,103170.0,4.70117054]
[1747060534287,0.001,103180.0,103170.0,5.44957054]
[1747060534711,0.001,103180.0,103170.0,4.70217054]
[1747060534925,0.001,103180.0,103170.0,4.9554965]
[1747060535370,0.001,103180.0,103170.0,5.3554965]
[1747060535832,0.001,103180.0,103170.0,2.4010165]
[1747060536052,0.001,103180.0,103170.0,5.4010165]
[1747060537115,0.001,103180.0,103170.0,5.4000165]
[1747060537546,0.002,103180.0,103170.0,5.4040165]
[1747060538252,0.19379437,103230.0,103220.0,0.21313688]
[1747060538474,1.76542145,103260.0,103230.0,0.22280248]
[1747060538475,0.69379016,103250.0,103230.0,0.22280248]
[1747060538702,0.70338973,103250.0,103240.0,0.20340952]
[1747060538938,0.5,103250.0,103240.0,0.22272341]
[1747060539165,0.53873911,103250.0,103240.0,0.24209471]
[1747060539428,0.7227599,103250.0,103240.0,0.21303734]
[1747060539703,0.71307496,103250.0,103240.0,0.21303734]
[1747060539939,0.70338983,103250.0,103240.0,0.00962791]
[1747060540641,0.19374212,103230.0,103220.0,0.34962791]
[1747060540855,0.19374212,103230.0,103220.0,0.00962791]
[1747060541083,0.00969001,103190.0,103180.0,0.28320489]
[1747060541297,0.22286744,103200.0,103190.0,0.21319866]
[1747060541504,0.21315679,103210.0,103200.0,0.00968945]
[1747060541759,0.0193788,103200.0,103190.0,0.63936182]
[1747060542151,0.00968926,103200.0,103190.0,1.54204153]
[1747060542367,0.02906844,103200.0,103190.0,0.31874297]
[1747060542622,0.02906825,103200.0,103190.0,0.31874297]
[1747060542868,0.00968785,103220.0,103200.0,0.01937842]
[1747060543124,0.22282398,103220.0,103210.0,0.0958543]
[1747060543336,0.2131365,103220.0,103210.0,0.29932276]
[1747060543563,0.02906356,103220.0,103210.0,0.22284558]
[1747060543794,0.01937514,103220.0,103210.0,0.56284511]
[1747060544022,0.22282426,103220.0,103210.0,0.34968888]
[1747060544245,0.22282426,103220.0,103210.0,0.55315715]
[1747060544469,0.004,103220.0,103210.0,0.65001089]
[1747060544684,0.004,103220.0,103210.0,3.56948693]
[1747060545103,0.004,103220.0,103210.0,3.96948693]
[1747060545817,0.01937092,103240.0,103230.0,0.2228023]
[1747060546044,0.02905671,103240.0,103230.0,0.32828451]
[1747060546271,0.01937092,103240.0,103230.0,0.32828451]
[1747060546492,0.03874259,103240.0,103230.0,0.32828451]
[1747060546724,0.03874259,103240.0,103230.0,0.31859807]
[1747060546725,0.21309419,103240.0,103230.0,0.31859807]
[1747060546948,0.21309541,103240.0,103230.0,0.00962791]
[1747060547867,0.21309541,103240.0,103230.0,0.01062791]
[1747060547868,0.21909541,103240.0,103230.0,0.01062791]
[1747060548457,0.01568598,103240.0,103230.0,0.22374377]
[1747060548670,0.0253711,103240.0,103230.0,0.57343021]
[1747060548896,0.2384665,103240.0,103230.0,0.56374395]
[1747060549114,0.01568541,103240.0,103230.0,0.58311712]
[1747060549343,0.21909522,103240.0,103230.0,0.35062791]
[1747060549791,0.21909522,103240.0,103230.0,0.55405704]
[1747060549792,0.0253713,103240.0,103230.0,0.55405704]
[1747060550024,0.21909513,103240.0,103230.0,0.55405704]
[1747060550248,0.21309513,103240.0,103230.0,0.57243058]
[1747060550500,0.21040934,103240.0,103230.0,0.35062791]
[1747060550756,0.21040934,103240.0,103230.0,0.34962791]
[1747060551194,0.21540934,103240.0,103230.0,0.35062791]
[1747060551415,0.31126364,103240.0,103230.0,0.001]
[1747060551634,0.34336364,103240.0,103230.0,0.001]
[1747060551857,0.81661249,103240.0,103230.0,0.001]
[1747060552728,1.18669249,103240.0,103230.0,0.001]
[1747060552949,1.52969249,103240.0,103230.0,0.001]
[1747060553179,0.21317762,103200.0,103190.0,0.07787404]
[1747060553366,0.21317762,103200.0,103190.0,0.17372834]
[1747060553579,0.21317762,103200.0,103190.0,0.0958543]
[1747060553796,0.02907087,103190.0,103180.0,0.17779758]
[1747060555055,0.21421895,103180.0,103170.0,0.42850195]
[1747060555274,0.21421895,103180.0,103170.0,0.63204949]
[1747060555492,0.21421895,103180.0,103170.0,0.64174204]
[1747060555914,0.01069104,103180.0,103170.0,0.66112648]
[1747060556150,0.01069104,103180.0,103170.0,1.57899978]
[1747060556151,0.001,103180.0,103170.0,1.57899978]
[1747060556777,0.0193804,103190.0,103170.0,1.54992213]
[1747060557008,0.0193804,103190.0,103180.0,0.31876457]
[1747060557201,0.02907088,103190.0,103180.0,0.30907343]
[1747060557411,0.21319838,103190.0,103180.0,0.20352771]
[1747060557628,0.22291046,103180.0,103170.0,0.56386753]
[1747060557835,0.01069123,103180.0,103170.0,0.55417535]
[1747060558038,0.00969095,103180.0,103170.0,0.57355979]
[1747060558571,0.21321895,103180.0,103170.0,0.35062791]
[1747060558777,0.21321895,103180.0,103170.0,0.55417545]
[1747060559124,0.21321895,103180.0,103170.0,0.56386809]
[1747060559336,0.01069029,103190.0,103180.0,0.20352762]
[1747060559559,0.21419809,103190.0,103180.0,0.20352771]
[1747060559758,0.03007097,103190.0,103180.0,0.22291027]
[1747060559960,0.22388905,103190.0,103180.0,0.20352771]
[1747060560161,0.22388905,103190.0,103180.0,0.22291083]
[1747060560467,0.21419866,103190.0,103180.0,0.21321922]
[1747060560700,0.001,103190.0,103180.0,0.23260178]
[1747060560946,0.06937861,103200.0,103190.0,0.57257915]
[1747060561176,0.27286715,103200.0,103190.0,0.56282657]
[1747060561406,0.2631778,103200.0,103190.0,0.34962791]
[1747060561853,0.2631778,103200.0,103190.0,0.54344514]
[1747060562300,0.05,103200.0,103190.0,0.56282667]
[1747060562513,0.06937852,103200.0,103190.0,0.58220735]
[1747060562723,0.07906806,103200.0,103190.0,0.58220735]
[1747060563168,0.08975779,103200.0,103190.0,0.58320735]
[1747060563422,0.28355623,103200.0,103190.0,0.57351715]
[1747060563645,0.26317799,103200.0,103190.0,0.34962791]
[1747060563861,0.26417799,103200.0,103190.0,0.5541359]
[1747060564522,0.05,103200.0,103190.0,0.58220696]
[1747060564746,0.05,103200.0,103190.0,0.67806126]
[1747060564964,0.051,103200.0,103190.0,2.0125874]
[1747060565180,0.051,103200.0,103190.0,2.48156544]
[1747060565397,0.051,103200.0,103190.0,2.86566629]
[1747060565841,0.051,103200.0,103190.0,2.78779225]
[1747060566276,0.05,103200.0,103190.0,2.78679225]
[1747060566491,0.05,103200.0,103190.0,3.1423714]
[1747060566704,0.05,103200.0,103190.0,3.1333714]
[1747060566705,0.04822228,103200.0,103190.0,3.1333714]
[1747060566921,0.04822228,103200.0,103190.0,3.14691225]
[1747060567132,0.001,103240.0,103230.0,0.2228023]
[1747060567372,0.01937317,103230.0,103220.0,0.21311954]
[1747060567624,0.01937307,103230.0,103220.0,0.50135559]
[1747060568079,0.01937307,103230.0,103220.0,0.59720989]
[1747060568326,0.01937307,103230.0,103220.0,0.58327789]
[1747060568327,0.02905989,103230.0,103220.0,0.58327789]
[1747060568580,0.21553772,103230.0,103220.0,0.00962791]
[1747060568804,0.21311585,103230.0,103220.0,0.00962791]
[1747060569032,0.00969161,103180.0,103160.0,0.63139942]
[1747060569256,0.21322152,103180.0,103170.0,0.00969245]
[1747060569501,0.00969189,103170.0,103160.0,0.69538282]
[1747060569727,0.20356708,103160.0,103150.0,0.04162791]
[1747060569958,0.21808174,103190.0,103180.0,0.20352771]
[1747060570171,0.1938506,103190.0,103180.0,0.0096918]
[1747060570382,0.21323923,103170.0,103160.0,0.20353712]
[1747060570600,0.21321951,103180.0,103170.0,0.20354735]
[1747060570823,0.19379844,103200.0,103190.0,0.22288914]
[1747060570824,0.20348817,103200.0,103190.0,0.22288914]
[1747060571069,0.21321904,103180.0,103170.0,0.4358543]
[1747060571284,0.00969142,103180.0,103170.0,0.56293216]
[1747060571494,0.22288876,103190.0,103180.0,0.54352762]
[1747060571707,0.21319847,103190.0,103180.0,0.54352771]
[1747060571923,0.00969067,103190.0,103180.0,0.53383601]
[1747060572139,0.20350771,103190.0,103180.0,0.56291008]
[1747060572342,0.21319866,103190.0,103180.0,0.53383601]
[1747060572550,0.21319866,103190.0,103180.0,0.55321913]
[1747060572755,0.21319866,103190.0,103180.0,0.54352781]
[1747060572970,0.21319866,103190.0,103180.0,0.55321951]
[1747060573186,0.19379844,103200.0,103190.0,0.00969076]
[1747060573410,0.213178,103200.0,103190.0,0.22288923]
[1747060573663,0.22286735,103200.0,103190.0,0.55319866]
[1747060573864,0.213178,103200.0,103190.0,0.54350799]
[1747060574357,0.213178,103200.0,103190.0,0.34]
[1747060574578,0.214178,103200.0,103190.0,0.55319847]
[1747060574786,0.03006834,103200.0,103190.0,0.56288886]
[1747060574996,0.22386735,103200.0,103190.0,0.55319847]
[1747060575210,0.001,103200.0,103190.0,1.46548501]
[1747060575413,0.001,103200.0,103190.0,1.47511292]
[1747060575626,0.001,103200.0,103190.0,1.07083488]
[1747060575858,0.22380537,103230.0,103220.0,0.22282417]
[1747060576090,0.22380593,103230.0,103220.0,0.56282464]
[1747060576316,0.001,103230.0,103220.0,2.02419807]
[1747060576521,0.001,103230.0,103220.0,2.42848411]
[1747060576980,0.01068635,103230.0,103220.0,1.37438469]
[1747060577208,0.01068626,103230.0,103220.0,1.33194407]
[1747060577450,0.001,103230.0,103220.0,1.33194407]
[1747060577684,0.21511492,103230.0,103220.0,1.31356903]
[1747060577912,0.21411566,103230.0,103220.0,0.34]
[1747060578998,0.2131365,103220.0,103210.0,0.34962791]
[1747060579215,0.19474212,103230.0,103210.0,0.58216181]
[1747060579435,0.01937458,103220.0,103210.0,0.582162]
[1747060579658,0.001,103230.0,103220.0,0.30069792]
[1747060579888,0.005,103230.0,103220.0,4.22982513]
[1747060580109,0.005,103230.0,103220.0,4.24910623]
[1747060580553,0.005,103230.0,103220.0,4.26264708]
[1747060580554,0.001,103230.0,103220.0,4.26264708]
[1747060580772,0.001,103230.0,103220.0,4.24810623]
[1747060581007,0.001,103230.0,103220.0,4.09721508]
[1747060581913,0.5,103250.0,103240.0,1.05325364]
[1747060581914,0.499,103250.0,103240.0,1.05325364]
[1747060582125,0.499,103250.0,103240.0,4.51750794]
[1747060582357,0.499,103250.0,103240.0,4.52713585]